fUST/lending_fUST_20250408
["ID","MTS","AMOUNT","RATE_DAILY","PERIOD"]
[357503519,1744093842550,-500.0,0.00022693,2]
[357503520,1744093842560,-500.0,0.00022693,2]
[357503521,1744093842569,-500.0,0.00022693,2]
[357503522,1744093842579,-500.0,0.00022693,2]
[357503523,1744093842589,-500.0,0.00022694,2]
[357503524,1744093842599,-500.0,0.00022694,2]
[357503525,1744093842608,-1148.15,0.00022694,2]
[357503526,1744093842617,-500.0,0.00022694,2]
[357503527,1744093842627,-661.93,0.00022694,2]
[357503528,1744093842636,-500.0,0.00022694,2]
[357503529,1744093842645,-500.0,0.00022694,2]
[357503530,1744093842655,-500.0,0.00022793,2]
[357503531,1744093842664,-705.61,0.00022967,2]
[357503532,1744093842673,-852.36,0.00022967,2]
[357503533,1744093842683,-500.0,0.00022967,2]
[357503534,1744093842692,-500.0,0.00022967,2]
[357503535,1744093842702,-500.0,0.00022967,2]
[357503536,1744093842711,-500.0,0.00022967,2]
[357503537,1744093842721,-500.0,0.00022968,2]
[357503538,1744093842730,-500.0,0.00022968,2]
[357503539,1744093842740,-1148.15,0.00022968,2]
[357503540,1744093842749,-646.03101796,0.00022968,2]
[357503541,1744093842759,-661.93,0.00022968,2]
[357503542,1744093842768,-500.0,0.00022968,2]
[357503543,1744093842779,-500.0,0.00022968,2]
[357503544,1744093842789,-13332.05839065,0.00023,2]
[357503545,1744093842799,-151.0,0.00023,2]
[357503546,1744093842819,-421.46,0.00023067,2]
[357503547,1744093842834,-705.61,0.00023241,2]
[357503548,1744093842846,-852.36,0.00023241,2]
[357503549,1744093842857,-500.0,0.00023241,2]
[357503550,1744093842868,-500.0,0.00023241,2]
[357503551,1744093842879,-500.0,0.00023241,2]
[357503552,1744093842889,-500.0,0.00023241,2]
[357503553,1744093842899,-500.0,0.00023242,2]
[357503554,1744093842909,-540.06897893,0.00023242,2]
[357503555,1744093842921,-1148.15,0.00023242,2]
[357503557,1744093842931,-661.93,0.00023242,2]
[357503559,1744093842941,-643.01213829,0.00023242,2]
[357503561,1744093842951,-500.0,0.00023242,2]
[357503563,1744093842961,-200.0,0.00023287,2]
[357503565,1744093842971,-705.61,0.00023515,2]
[357503567,1744093842982,-852.36,0.00023515,2]
[357503568,1744093842992,-500.0,0.00023515,2]
[357503569,1744093843003,-500.0,0.00023515,2]
[357503570,1744093843013,-500.0,0.00023515,2]
[357503571,1744093843023,-500.0,0.00023515,2]
[357503572,1744093843035,-500.0,0.00023516,2]
[357503573,1744093843046,-1148.15,0.00023516,2]
[357503574,1744093843056,-661.93,0.00023516,2]
[357503575,1744093843067,-322.61681117,0.00023516,2]
[357503576,1744093843077,-151.83352873,0.00023638,2]
[357503577,1744093843087,-705.61,0.00023789,2]
[357503578,1744093843097,-852.36,0.00023789,2]
[357503579,1744093843107,-500.0,0.00023789,2]
[357503582,1744093843117,-500.0,0.00023789,2]
[357503584,1744093843127,-500.0,0.00023789,2]
[357503585,1744093843137,-500.0,0.00023789,2]
[357503586,1744093843147,-500.0,0.0002379,2]
[357503587,1744093843157,-1148.15,0.0002379,2]
[357503588,1744093843166,-661.93,0.0002379,2]
[357503589,1744093843176,-705.61,0.00024063,2]
[357503590,1744093843186,-852.36,0.00024063,2]
[357503591,1744093843197,-500.0,0.00024063,2]
[357503592,1744093843207,-304.37433331,0.00024063,2]
[357503593,1744093843217,-152.86341275,0.00024063,2]
[357503594,1744093843227,-500.0,0.00024063,2]
[357503595,1744093843236,-500.0,0.00024064,2]
[357503596,1744093843246,-1148.15,0.00024064,2]
[357503597,1744093843256,-661.93,0.00024064,2]
[357503598,1744093843266,-705.61,0.00024337,2]
[357503599,1744093843277,-852.36,0.00024337,2]
[357503600,1744093843287,-500.0,0.00024337,2]
[357503601,1744093843297,-560.4471213,0.00024337,2]
[357503602,1744093843307,-500.0,0.00024338,2]
[357503603,1744093843317,-1148.15,0.00024338,2]
[357503604,1744093843327,-661.93,0.00024338,2]
[357503605,1744093843337,-705.61,0.00024611,2]
[357503606,1744093843347,-852.36,0.00024611,2]
[357503607,1744093843357,-491.29726312,0.00024611,2]
[357503608,1744093843367,-500.0,0.00024612,2]
[357503609,1744093843377,-1148.15,0.00024612,2]
[357503610,1744093843387,-661.93,0.00024612,2]
[357503611,1744093843397,-500.0,0.00024657,2]
[357503612,1744093843407,-500.0,0.00024657,2]
[357503613,1744093843417,-500.0,0.00024657,2]
[357503614,1744093843432,-500.0,0.00024657,2]
[357503615,1744093843442,-503.29519876,0.00024657,2]
[357503616,1744093843452,-159.76477025,0.00024657,2]
[357503617,1744093843463,-200.0,0.00024657,2]
[357503619,1744093843473,-500.0,0.00024657,10]
[357503620,1744093843483,-500.0,0.00024657,10]
[357503621,1744093843493,-269.76998995,0.00024657,10]
[357503622,1744093843504,-500.0,0.00024658,2]
[357503623,1744093843514,-500.0,0.00024658,2]
[357503624,1744093843524,-500.0,0.00024658,2]
[357503625,1744093843535,-300.00000001,0.00024658,2]
[357503626,1744093843545,-646.62366534,0.00024873,2]
[357503627,1744093843555,-500.0,0.00024873,2]
[357503628,1744093843565,-502.5418433,0.00024873,2]
[357503629,1744093843576,-501.4554662,0.00024873,2]
[357503630,1744093843586,-500.87750444,0.00024873,2]
[357503631,1744093843596,-500.0,0.00024873,2]
[357503632,1744093843607,-500.0,0.00024873,2]
[357503633,1744093843618,-183.69513266,0.00024873,2]
[357503634,1744093843628,-500.0,0.00024873,2]
[357503635,1744093843638,-500.49303946,0.00024873,2]
[357503636,1744093843648,-501.04185555,0.00024873,2]
[357503637,1744093843658,-501.97825502,0.00024873,2]
[357503638,1744093843668,-430.08989638,0.00024873,2]
[357503639,1744093843679,-500.55098933,0.00024873,2]
[357503640,1744093843688,-593.05159071,0.00024873,2]
[357503641,1744093843698,-500.0,0.00024873,2]
[357503642,1744093843708,-301.64419783,0.00024873,2]
[357503643,1744093843718,-501.06796866,0.00024873,2]
[357503644,1744093843730,-502.22652041,0.00024873,2]
[357503645,1744093843740,-500.63505816,0.00024873,2]
[357503646,1744093843750,-435.50982937,0.00024873,2]
[357503647,1744093843775,-165.09083967,0.00024873,2]
[357503648,1744093843792,-500.96418781,0.00024873,2]
[357503649,1744093843808,-608.3465431,0.00024873,2]
[357503650,1744093843823,-501.49778525,0.00024873,2]
[357503651,1744093843838,-501.01809197,0.00024873,2]
[357503652,1744093843856,-500.0,0.00024873,2]
[357503653,1744093843870,-615.28107241,0.00024873,2]
[357503654,1744093843882,-500.44014391,0.00024873,2]
[357503655,1744093843895,-500.0,0.00024873,2]
[357503656,1744093843907,-552.26994576,0.00024873,2]
[357503657,1744093843922,-300.36949938,0.00024873,2]
[357503658,1744093843935,-501.28287713,0.00024873,2]
[357503659,1744093843948,-500.0,0.00024873,2]
[357503660,1744093843960,-500.0,0.00024873,2]
[357503661,1744093843973,-500.0,0.00024873,2]
[357503662,1744093843986,-502.07304544,0.00024873,2]
[357503663,1744093843999,-501.02983718,0.00024873,2]
[357503664,1744093844012,-615.16376688,0.00024873,2]
[357503667,1744093844025,-510.33701651,0.00024873,2]
[357503669,1744093844036,-500.0,0.00024873,2]
[357503671,1744093844048,-500.0,0.00024873,2]
[357503673,1744093844060,-500.58205629,0.00024873,2]
[357503675,1744093844074,-500.0,0.00024873,2]
[357503677,1744093844086,-256.9179675,0.00024873,2]
[357503678,1744093844099,-501.32097158,0.00024873,2]
[357503679,1744093844111,-705.61,0.00024885,2]
[357503680,1744093844124,-852.36,0.00024885,2]
[357503681,1744093844136,-500.0,0.00024886,2]
[357503682,1744093844148,-1148.15,0.00024886,2]
[357503683,1744093844164,-661.93,0.00024886,2]
[357503684,1744093844177,-424748.29254,0.000249,2]
[357503685,1744093844189,-2073.50562115,0.00025,2]
[357503686,1744093844201,-1008.87493241,0.00025152,2]
[357503687,1744093844215,-705.61,0.00025159,2]
[357503688,1744093844227,-852.36,0.00025159,2]
[357503689,1744093844241,-500.0,0.0002516,2]
[357503690,1744093844252,-1148.15,0.0002516,2]
[357503691,1744093844264,-661.93,0.0002516,2]
[357503692,1744093844275,-705.61,0.00025433,2]
[357503693,1744093844285,-852.36,0.00025433,2]
[357503694,1744093844295,-500.0,0.00025434,2]
[357503695,1744093844305,-1148.15,0.00025434,2]
[357503696,1744093844317,-661.93,0.00025434,2]
[357503697,1744093844329,-900.0,0.00025469,3]
[357503698,1744093844339,-705.61,0.00025707,2]
[357503699,1744093844351,-852.36,0.00025707,2]
[357503700,1744093844363,-374.15159413,0.00025708,2]
[357503701,1744093844375,-1148.15,0.00025708,2]
[357503702,1744093844387,-661.93,0.00025708,2]
[357503703,1744093844399,-1000.0,0.00025787,2]
[357503704,1744093844411,-1000.0,0.00025787,2]
[357503705,1744093844422,-1000.0,0.00025787,2]
[357503706,1744093844435,-1000.0,0.00025787,2]
[357503707,1744093844449,-1007.21265702,0.00025787,2]
[357503708,1744093844461,-1000.0,0.00025787,2]
[357503709,1744093844474,-1000.0,0.00025787,2]
[357503710,1744093844486,-1000.0,0.00025859,2]
[357503711,1744093844499,-1000.0,0.00025882,2]
[357503712,1744093844512,-1000.0,0.00025898,2]
[357503713,1744093844523,-467.96405866,0.00025977,2]
[357503714,1744093844534,-705.72846129,0.00025981,2]
[357503715,1744093844544,-852.5449071,0.00025981,2]
[357503716,1744093844554,-1148.21548836,0.00025982,2]
[357503717,1744093844565,-662.06803004,0.00025982,2]
[357503718,1744093844575,-465.15559363,0.00025987,2]
[357503719,1744093844587,-64367.79280152,0.00026,30]
[357503720,1744093844598,-837.41003169,0.00026,30]
[357503721,1744093844611,-200.0,0.00026027,2]
[357503722,1744093844624,-1000.0,0.00026079,2]
[357503723,1744093844636,-1000.0,0.00026079,2]
[357503724,1744093844648,-1000.0,0.00026079,2]
[357503725,1744093844659,-837.41003169,0.00027,3]
[357503726,1744093844669,-837.41003169,0.00027,3]
[357503727,1744093844680,-200.0,0.00027397,2]
[357503728,1744093844690,-501.49010657,0.00027397,2]
[357503729,1744093844701,-167.593456,0.00027397,120]
[357503730,1744093844712,-500.0,0.00027397,5]
[357503731,1744093844723,-151.83352873,0.00027598,2]
[357503732,1744093844735,-18943.80452047,0.000277,2]
[357503733,1744093844747,-200.0,0.00028767,2]
[357503734,1744093844757,-547.401,0.00029563,2]
[357503735,1744093844767,-801.802,0.00029563,2]
[357503736,1744093844779,-2253.0,0.00029563,2]
[357503737,1744093844789,-401.0,0.00029563,2]
[357503738,1744093844799,-150.584,0.00029563,2]
[357503739,1744093844809,-279.99,0.00029589,23]
[357503740,1744093844822,-1514.39431799,0.0003,7]
[357503741,1744093844843,-155.12168338,0.0003,2]
[357503742,1744093844865,-150.16910683,0.0003,5]
[357503743,1744093844888,-151.3115747,0.0003,2]
[357503744,1744093844912,-179.91004498,0.00030001,4]
[357503745,1744093844939,-200.0,0.00030136,2]
[357503746,1744093844964,-1000.0,0.00030352,5]
[357503747,1744093844991,-501.55578929,0.00030352,5]
[357503748,1744093845019,-506.5078414,0.00030352,5]
[357503749,1744093845049,-1098.35081077,0.00030352,5]
[357503750,1744093845079,-501.99160187,0.00030352,5]
[357503751,1744093845106,-705.27607404,0.00030352,5]
[357503752,1744093845130,-1000.0,0.00030352,5]
[357503753,1744093845144,-501.54608834,0.00030352,5]
[357503754,1744093845156,-1000.0,0.00030352,5]
[357503755,1744093845167,-804.70270583,0.00030352,5]
[357503756,1744093845179,-604.60346185,0.00030352,5]
[357503757,1744093845192,-390.1040898,0.00030352,5]
[357503758,1744093845203,-167.49456348,0.00031506,2]
[357503759,1744093845215,-151.83352873,0.00031557,2]
[357503760,1744093845227,-1595.69150474,0.000318,7]
[357503761,1744093845239,-160.0,0.00032179,3]
[357503762,1744093845251,-2000.0,0.00032247,4]
[357503763,1744093845263,-160.0,0.00032549,3]
[357503764,1744093845275,-543.0,0.00032563,2]
[357503765,1744093845287,-907.424,0.00032563,2]
[357503766,1744093845298,-150.0,0.00032563,2]
[357503767,1744093845309,-500.0,0.00032877,5]
[357503768,1744093845320,-150.0,0.00032877,5]
[357503769,1744093845332,-1000.0,0.00032877,5]
[357503770,1744093845343,-647.15021826,0.00033,120]
[357503771,1744093845355,-2781.15533292,0.00033,5]
[357503772,1744093845366,-6579.26025965,0.00033453,4]
[357503773,1744093845377,-160.0,0.00033599,4]
[357503774,1744093845389,-2000.0,0.00034185,4]
[357503775,1744093845402,-2200.0,0.00034398,7]
[357503776,1744093845414,-500.0,0.00034398,7]
[357503777,1744093845425,-160.0,0.00034464,4]
[357503778,1744093845435,-160.0,0.00034649,5]
[357503779,1744093845446,-500.0,0.00034689,13]
[357503780,1744093845458,-150.0,0.000347,2]
[357503781,1744093845470,-1284.8205332,0.00034919,4]
[357503782,1744093845481,-91221.12231111,0.00035,15]
[357503783,1744093845493,-38149.89803666,0.00035,30]
[357503784,1744093845504,-837.41003169,0.00035,30]
[357503785,1744093845515,-5000.0,0.00035,15]
[357503786,1744093845526,-627.5965,0.00035074,30]
[357503787,1744093845538,-154.4696946,0.00035181,30]
[357503788,1744093845549,-153.0,0.00035181,30]
[357503789,1744093845560,-1230.716543,0.00035181,30]
[357503790,1744093845572,-153.0,0.00035181,30]
[357503791,1744093845583,-5000.00395692,0.000355,20]
[357503792,1744093845595,-151.83352873,0.00035516,2]
[357503793,1744093845606,-543.0,0.00035563,2]
[357503794,1744093845616,-150.0,0.00035563,2]
[357503795,1744093845628,-2500.0,0.00035615,60]
[357503796,1744093845639,-1000.33772039,0.00035616,5]
[357503797,1744093845650,-500.0,0.00035616,7]
[357503798,1744093845661,-500.29432207,0.00035616,7]
[357503799,1744093845671,-500.0,0.00035616,7]
[357503800,1744093845682,-500.0,0.00035616,7]
[357503801,1744093845694,-500.0,0.00035616,7]
[357503802,1744093845705,-500.0,0.00035616,7]
[357503803,1744093845717,-500.0,0.00035616,7]
[357503804,1744093845728,-500.0,0.00035616,7]
[357503805,1744093845739,-500.0,0.00035616,7]
[357503806,1744093845751,-500.0,0.00035616,7]
[357503807,1744093845763,-500.0,0.00035616,7]
[357503808,1744093845774,-500.0,0.00035616,7]
[357503809,1744093845786,-500.0,0.00035616,7]
[357503810,1744093845796,-500.0,0.00035616,7]
[357503811,1744093845807,-500.0,0.00035616,7]
[357503812,1744093845818,-500.0,0.00035616,7]
[357503813,1744093845828,-500.0,0.00035616,7]
[357503814,1744093845841,-500.0,0.00035616,7]
[357503815,1744093845852,-160.0,0.00035699,6]
[357503817,1744093846037,-1667.24,0.000357,7]
[357503818,1744093846047,-147731.07924444,0.000357,30]
[357503821,1744093846227,-0.00669796,0.00022145,2]
[357503822,1744093846360,-387.60027734,0.00022145,2]
[357503823,1744093846370,-151.0,0.00033,2]
[357503824,1744093846380,-302.68024983,0.000357,30]
[357503828,1744093846658,-500.0,0.0001968,2]
[357503829,1744093846668,-575.0,0.00035074,30]
[357503830,1744093846679,-6024.10553006,0.000357,30]
[357503831,1744093846737,-17709.63140931,0.000357,30]
[357503832,1744093846750,-19260.29454545,0.000357,30]
[357503834,1744093846763,-1591.92,0.000357,30]
[357503836,1744093846776,-1686.89433283,0.000357,30]
[357503839,1744093846917,-1879.14300287,0.000357,30]
[357503840,1744093857863,-152.55748163,0.00019679,2]
[357503841,1744093857889,-90.55764301,0.00019679,2]
[357503842,1744093865013,-165.1872738,0.00019679,2]
[357503843,1744093869736,-244.25508319,0.00019679,2]
[357503844,1744093869760,-28.90600021,0.00019679,2]
[357503845,1744093915875,-225.60602692,0.00019679,2]
[357503846,1744093929602,-245.48797287,0.00019679,2]
[357503847,1744093929626,-54.51202713,0.00019679,2]
[357503848,1744093932418,-445.48797287,0.00019679,2]
[357503849,1744093932443,-11.32777791,0.00019679,2]
[357503850,1744093957636,-154.80629526,0.00019581,2]
[357503851,1744094006714,-152.0,0.0001958,2]
[357503852,1744094042485,-170.99077178,0.00019581,2]
[357503853,1744094055635,-300.0,0.0001958,2]
[357503854,1744094055662,-4700.0,0.00019581,2]
[357503855,1744094056305,-177.00922822,0.00019581,2]
[357503856,1744094056740,-5000.0,0.00019581,2]
[357503857,1744094057756,-5000.0,0.00019581,2]
[357503858,1744094062387,-5000.0,0.00019581,2]
[357503859,1744094063208,-500.0,0.00019581,2]
[357503860,1744094072765,-2000.0,0.00019581,2]
[357503861,1744094081558,-481.11725077,0.00019581,2]
[357503862,1744094097462,-199.5032,0.00019581,2]
[357503864,1744094148513,-193.2661,0.00018777,2]
[357503865,1744094155116,-180.7391086,0.00018589,2]
[357503866,1744094312169,-12.5269914,0.00018589,2]
[357503867,1744094312192,-16.5270695,0.00018777,2]
[357503868,1744094312213,-832.58,0.00019571,3]
[357503869,1744094312234,-458.39497156,0.00019573,2]
[357503870,1744094312254,-500.0,0.0001958,2]
[357503871,1744094312275,-2419.67,0.0001958,2]
[357503872,1744094312298,-500.0,0.0001958,2]
[357503873,1744094312319,-500.0,0.0001958,2]
[357503874,1744094312340,-500.0,0.0001958,2]
[357503875,1744094313444,500.0,0.0001958,2]
[357503876,1744094315769,500.0,0.0001958,2]
[357503877,1744094316938,500.0,0.0001958,2]
[357503878,1744094325735,500.0,0.0001958,2]
[357503879,1744094326413,180.7391086,0.00019581,2]
[357503880,1744094335011,662.59,0.0001958,2]
[357503881,1744094349108,-500.0,0.0001958,2]
[357503882,1744094349133,-107416.97185894,0.00019581,2]
[357503890,1744094750167,-184.6515038,0.00018605,2]
[357503891,1744094750188,-2147.379332,0.00019329,2]
[357503892,1744094831088,-206.61196121,0.00019329,2]
[357503893,1744094841937,-2843.5684862,0.00019329,2]
[357503894,1744094841960,-2771.68739614,0.0001948,2]
[357503895,1744094841982,-204.37,0.0001957,2]
[357503896,1744094842004,-501.85043354,0.00019573,2]
[357503897,1744094842026,-300.0,0.00019578,2]
[357503898,1744094842048,-500.0,0.00019579,2]
[357503899,1744094842070,-2833.4,0.00019579,2]
[357503900,1744094842093,-500.0,0.00019579,2]
[357503901,1744094842116,-514.49388746,0.00019579,2]
[357503902,1744094842139,-626.86,0.00019579,2]
[357503903,1744094842159,-500.0,0.00019579,2]
[357503904,1744094842181,-500.0,0.00019579,2]
[357503905,1744094842203,-500.0,0.00019579,2]
[357503906,1744094842223,-500.0,0.00019579,2]
[357503907,1744094842242,-500.0,0.00019579,2]
[357503908,1744094842261,-500.0,0.00019579,2]
[357503909,1744094842281,-500.0,0.00019579,2]
[357503910,1744094842301,-500.0,0.00019579,2]
[357503911,1744094842326,-500.0,0.00019579,2]
[357503912,1744094842356,-500.0,0.00019579,2]
[357503913,1744094842384,-500.0,0.00019579,2]
[357503914,1744094842412,-500.0,0.00019579,2]
[357503915,1744094842439,-500.0,0.00019579,2]
[357503916,1744094842466,-500.0,0.00019579,2]
[357503917,1744094842493,-500.0,0.00019579,2]
[357503918,1744094842517,-500.0,0.00019579,2]
[357503919,1744094842545,-500.0,0.00019579,2]
[357503920,1744094842571,-500.0,0.00019579,2]
[357503921,1744094842596,-500.0,0.00019579,2]
[357503922,1744094842621,-500.0,0.00019579,2]
[357503923,1744094842650,-500.0,0.00019579,2]
[357503924,1744094842680,-500.0,0.00019579,2]
[357503925,1744094842707,-846.51,0.00019579,2]
[357503926,1744094842732,-500.0,0.00019579,2]
[357503927,1744094842758,-500.0,0.00019579,2]
[357503928,1744094842786,-500.0,0.00019579,2]
[357503929,1744094842815,-500.0,0.00019579,2]
[357503930,1744094842842,-500.0,0.00019579,2]
[357503931,1744094842871,-500.0,0.00019579,2]
[357503932,1744094842901,-500.0,0.00019579,2]
[357503933,1744094842929,-2419.59,0.00019579,2]
[357503934,1744094842952,-500.0,0.0001958,2]
[357503935,1744094842980,-500.0,0.0001958,2]
[357503936,1744094843010,-500.0,0.0001958,2]
[357503937,1744094843036,-500.0,0.0001958,2]
[357503938,1744094843060,-500.0,0.0001958,2]
[357503939,1744094843085,-500.0,0.0001958,2]
[357503940,1744094843111,-500.0,0.0001958,2]
[357503941,1744094843137,-500.0,0.0001958,2]
[357503942,1744094843163,-500.0,0.0001958,2]
[357503943,1744094843187,-500.0,0.0001958,2]
[357503944,1744094843216,-500.0,0.0001958,2]
[357503945,1744094843240,-500.0,0.0001958,2]
[357503946,1744094843264,-500.0,0.0001958,2]
[357503947,1744094843288,-500.0,0.0001958,2]
[357503948,1744094843313,-500.0,0.0001958,2]
[357503949,1744094843337,-500.0,0.0001958,2]
[357503950,1744094843361,-500.0,0.0001958,2]
[357503951,1744094843386,-500.0,0.0001958,2]
[357503952,1744094843410,-500.0,0.0001958,2]
[357503953,1744094843435,-500.0,0.0001958,2]
[357503954,1744094843458,-500.0,0.0001958,2]
[357503955,1744094843483,-500.0,0.0001958,2]
[357503956,1744094843508,-500.0,0.0001958,2]
[357503957,1744094843534,-500.0,0.0001958,2]
[357503958,1744094843561,-500.0,0.0001958,2]
[357503959,1744094843586,-500.0,0.0001958,2]
[357503960,1744094843612,-500.0,0.0001958,2]
[357503961,1744094843637,-616.04632118,0.0001958,2]
[357503962,1744094843662,-500.0,0.0001958,2]
[357503963,1744094843688,-567.44,0.0001958,2]
[357503964,1744094843717,-871.46,0.0001958,2]
[357503965,1744094843742,-633.16,0.0001958,2]
[357503966,1744094843769,-500.0,0.0001958,2]
[357503967,1744094843796,-880.02,0.0001958,2]
[357503968,1744094843822,-500.0,0.0001958,2]
[357503969,1744094843848,-500.0,0.0001958,2]
[357503970,1744094843874,-1188.61,0.0001958,2]
[357503971,1744094843900,-500.0,0.0001958,2]
[357503972,1744094843926,-500.0,0.0001958,2]
[357503973,1744094843953,-1305.28,0.0001958,2]
[357503974,1744094843979,-500.0,0.0001958,2]
[357503975,1744094844004,-582.27,0.0001958,2]
[357503976,1744094844033,-500.0,0.0001958,2]
[357503977,1744094844056,-500.0,0.0001958,2]
[357503978,1744094844273,-28474.1300981,0.0001958,2]
[357503979,1744094844296,-500.0,0.0001958,2]
[357503980,1744094844318,-500.0,0.0001958,2]
[357503981,1744094844341,-500.0,0.0001958,2]
[357503982,1744094844364,-500.0,0.0001958,2]
[357503983,1744094844386,-500.0,0.0001958,2]
[357503984,1744094844408,-500.0,0.0001958,2]
[357503985,1744094844430,-500.0,0.0001958,2]
[357503986,1744094844452,-500.0,0.0001958,2]
[357503987,1744094844474,-500.0,0.0001958,2]
[357503988,1744094844495,-500.0,0.0001958,2]
[357503989,1744094844517,-500.0,0.0001958,2]
[357503990,1744094844538,-500.0,0.0001958,2]
[357503991,1744094844560,-272.04,0.0001958,2]
[357503992,1744094844581,-500.0,0.0001958,2]
[357503993,1744094844602,-500.0,0.0001958,2]
[357503994,1744094844623,-836.53,0.0001958,2]
[357503995,1744094844645,-1138.74,0.0001958,2]
[357503996,1744094844667,-500.0,0.0001958,2]
[357503997,1744094844689,-500.0,0.0001958,2]
[357503998,1744094844711,-500.0,0.0001958,2]
[357503999,1744094844733,-612.38,0.0001958,2]
[357504000,1744094844761,-500.0,0.0001958,2]
[357504001,1744094844783,-500.0,0.0001958,2]
[357504002,1744094844804,-500.0,0.0001958,2]
[357504003,1744094844825,-500.0,0.0001958,2]
[357504004,1744094844846,-500.0,0.0001958,2]
[357504005,1744094844867,-1084.37,0.0001958,2]
[357504006,1744094844889,-500.0,0.0001958,2]
[357504007,1744094844914,-1123.48,0.0001958,2]
[357504008,1744094844935,-500.0,0.0001958,2]
[357504009,1744094844957,-974.87,0.0001958,2]
[357504010,1744094844978,-1054.08,0.0001958,2]
[357504011,1744094845000,-500.0,0.0001958,2]
[357504012,1744094845022,-500.0,0.0001958,2]
[357504013,1744094845044,-539.07,0.0001958,2]
[357504014,1744094845066,-249.42,0.0001958,2]
[357504015,1744094845087,-500.0,0.0001958,2]
[357504016,1744094845108,-500.0,0.0001958,2]
[357504017,1744094845134,-500.0,0.0001958,2]
[357504018,1744094845155,-500.0,0.0001958,2]
[357504019,1744094845179,-794.89,0.0001958,2]
[357504020,1744094845202,-500.0,0.0001958,2]
[357504021,1744094845224,-500.0,0.0001958,2]
[357504022,1744094845245,-500.0,0.0001958,2]
[357504023,1744094845266,-500.0,0.0001958,2]
[357504024,1744094845287,-500.0,0.0001958,2]
[357504025,1744094845309,-500.0,0.0001958,2]
[357504026,1744094845331,-500.0,0.0001958,2]
[357504027,1744094845352,-500.0,0.0001958,2]
[357504028,1744094845374,-827.27,0.0001958,2]
[357504029,1744094845395,-507.31,0.0001958,2]
[357504030,1744094845416,-500.0,0.0001958,2]
[357504031,1744094845438,-356.41897734,0.0001958,2]
[357504032,1744094845459,-30999.7467712,0.00019581,2]
[357504036,1744094953079,-300.0,0.00019578,2]
[357504037,1744094953100,-167.26264803,0.00019579,2]
[357504038,1744094953121,-527.40985493,0.00019579,2]
[357504039,1744094953142,-500.0,0.00019579,2]
[357504040,1744094953167,-572.76,0.00019579,2]
[357504041,1744094953186,-500.0,0.00019579,2]
[357504042,1744094953207,-500.0,0.00019579,2]
[357504043,1744094953228,-500.0,0.00019579,2]
[357504044,1744094953249,-563.07982288,0.00019579,2]
[357504045,1744094953268,-500.0,0.00019579,2]
[357504046,1744094953287,-500.0,0.00019579,2]
[357504047,1744094953307,-500.0,0.00019579,2]
[357504048,1744094953327,-200.0,0.00019579,2]
[357504049,1744094953346,-500.0,0.00019579,2]
[357504050,1744094953366,-500.0,0.00019579,2]
[357504051,1744094953387,-500.0,0.00019579,2]
[357504052,1744094953407,-549.92762833,0.00019579,2]
[357504053,1744094953427,-500.0,0.00019579,2]
[357504054,1744094953449,-500.0,0.00019579,2]
[357504055,1744094953469,-500.0,0.00019579,2]
[357504056,1744094953491,-762.52,0.00019579,2]